Cogmind - Beta 13 @@@ ROGUE MODE // 2024.04.14 @ 02:26:43 Player: Klelik Result: Destroyed by Y-45 Defender with Heavy Assault Rifle Performance ------------- Evolutions (0) 0 Regions Visited (2) 400 Robots Destroyed (12) 60 Value Destroyed (205) 205 Prototype IDs (0) 0 Alien Tech Used (0) 0 Bonus (0) 0 TOTAL SCORE: 665 Bonus ------- None Cogmind --------- Core Integrity 0/250 Matter 141/300 Energy 81/100 System Corruption 1% Temperature Cool (18) Movement Flying (37) Location -10/Mines Parts ------- > --- POWER (1) -------- (None) > --- PROPULSION (2) --- Flight Unit Flight Unit > --- UTILITY (2) ------ (None) > --- WEAPON (2) ------- Grenade Launcher Plasma Flamer > --- INVENTORY (5) ---- Ion Engine Aluminum Leg Flight Unit Light Assault Rifle Peak State ------------ > --- POWER ------------ Ion Engine > --- PROPULSION ------- Aluminum Leg Aluminum Leg > --- UTILITY ---------- (None) > --- WEAPON ----------- Grenade Launcher Plasma Flamer > --- INVENTORY -------- Ion Engine Aluminum Leg [Rating: 9] Favorites ----------- Power Ion Engine Engine Ion Engine Propulsion Compact Wheel Leg Aluminum Leg Wheel Compact Wheel Flight Unit Flight Unit Utility Heat Sink Device Heat Sink Weapon Assault Rifle Energy Gun Small Laser Ballistic Gun Assault Rifle Launcher Grenade Launcher Special Weapon Plasma Flamer Build | -11 -10 -10 ------- Run | Yrd Mat Min Slots Evolved . | . . . Power . | . . . Propulsion . | . . . Utility . | . . . Weapon . | . . . Parts Attached 15 | 5 2 8 Power 3 | 1 1 1 Engine 3 | 1 1 1 Core . | . . . Reactor . | . . . Propulsion 6 | 2 . 4 Treads . | . . . Leg 2 | . . 2 Wheel 2 | 2 . . Hover . | . . . Flight 2 | . . 2 Utility 1 | . 1 . Device 1 | . 1 . Storage . | . . . Processor . | . . . Hackware . | . . . Protection . | . . . Artifact . | . . . Weapon 5 | 2 . 3 Energy Gun 1 | 1 . . Energy Cannon . | . . . Ballistic Gun 1 | 1 . . Ballistic Cannon . | . . . Launcher 1 | . . 1 Special Weapon 2 | . . 2 Impact Weapon . | . . . Slashing Weapon . | . . . Piercing Weapon . | . . . Special Melee Weapon . | . . . Unidentified Prototypes . | . . . Parts Lost 10 | . 1 9 Power 2 | . . 2 Propulsion 4 | . 1 3 Utility 1 | . . 1 Weapon 3 | . . 3 Highest Loss Streak 6 | . 1 6 To Critical Strikes . | . . . Average Slot Usage (%) 65 | . 76 53 Engine 12 | . 14 10 Leg 7 | . . 15 Wheel 13 | . 22 1 Flight 1 | . . 3 Device 6 | . 10 . Energy Gun 9 | . 14 2 Ballistic Gun 8 | . 14 2 Launcher 5 | . . 11 Special Weapon 2 | . . 4 Naked Turns . | . . . Heaviest Build 9 | 8 9 8 Greatest Support 26 | 26 26 20 Greatest Overweight (x) 1 | . . 1 Average Overweight (x) . | . . . Largest Inventory Capacity 5 | 5 5 5 Average Capacity 5 | 5 5 5 Most Carried 5 | 2 5 5 Average Carried 3 | . 4 2 Final Capacity 5 | 5 5 5 Final Carried 5 | 2 5 4 Class Distribution -------------------- 100% | Mutant Dominant Class ---------------- Mutant | -10/Materials Mutant | -10/Mines Resources | -11 -10 -10 ----------- Run | Yrd Mat Min Matter Collected 341 | 211 92 38 Remotely . | . . . Salvage Created 199 | . 130 69 Parts 18 | . 12 6 Haulers Intercepted . | . . . Recyclers Shooed . | . . . Parts Field Recycled . | . . . Retrieved Matter . | . . . Parts Self-Destructed . | . . . Prevented . | . . . Kills | -11 -10 -10 ------- Run | Yrd Mat Min Combat Hostiles Destroyed 12 | . 7 5 Guns 8 | . 7 1 Cannons 2 | . . 2 AOE 2 | . . 2 Classes Destroyed 2 | . 2 . Swarmer 9 | . 6 3 Grunt 3 | . 1 2 Best Kill Streak 3 | . 3 3 Combat Bots Only 3 | . 3 3 Max Kills in Single Turn 1 | . 1 1 Gunslinging . | . . . Exploded 1 | . . 1 Melee . | . . . Uniques/NPCs Destroyed . | . . . Combat | -11 -10 -10 -------- Run | Yrd Mat Min Hostile Shots Fired 93 | . 47 46 Missed 18 | . 8 10 Damage Taken 875 | . 313 562 Core 250 | . 75 175 Absorbed by Shields . | . . . Core Remaining (%) 100 | 100 . . Volleys Fired 45 | . 21 24 Largest 2 | . 2 2 Hottest 130 | . 60 130 Shots Fired 73 | . 42 31 Gun 57 | . 42 15 Cannon . | . . . Launcher 7 | . . 7 Special 9 | . . 9 Kinetic 27 | . 21 6 Thermal 39 | . 21 18 Explosive 7 | . . 7 Electromagnetic . | . . . Robot Hit Streak 9 | . 7 9 Robot Miss Streak 4 | . 4 3 Penetration Max . | . . . Secondary Targets 2 | . 2 . Max Gunslinging Chain 1 | . 1 . Shots Hit Robots 48 | . 28 20 Core Hits 19 | . 8 11 Critical Kills . | . . . Critical Parts Destroyed . | . . . Critical Strikes 1 | . . 1 Burn 1 | . . 1 Melee Attacks . | . . . Impact . | . . . Slashing . | . . . Piercing . | . . . Sneak Attacks . | . . . Combat Hostiles . | . . . Follow-up Attacks . | . . . Damage Inflicted 760 | . 333 427 Guns 449 | . 333 116 Cannons . | . . . Explosions 235 | . . 235 Melee . | . . . Ramming . | . . . Kinetic 231 | . 181 50 Thermal 294 | . 152 142 Explosive 235 | . . 235 Electromagnetic . | . . . Impact . | . . . Slashing . | . . . Piercing . | . . . Highest Corruption 1 | . 1 1 Average Corruption 1 | . 1 1 Corruption Purged . | . . . Corruption Blocked . | . . . Effects 1 | . . 1 Heat Flow Errors 1 | . . 1 Overload Shots . | . . . Overflow Damage 2 | . . 2 Projectiles . | . . . Explosions 2 | . . 2 Melee . | . . . Knockbacks . | . . . Impact . | . . . Kinetic . | . . . Secondary . | . . . Self-Inflicted Damage 100 | . . 100 Shots 3 | . . 3 Rammed . | . . . Targets Rammed . | . . . Kicked . | . . . Crushed . | . . . Highest Temperature 384 | . . 384 Average Temperature 220 | . . 220 Received Heat Transfer 246 | . 6 240 Effects 7 | . . 7 Shutdowns 1 | . . 1 Energy Bleed 1 | . . 1 Interference 2 | . . 2 Matter Decay 1 | . . 1 Damage (minor) 2 | . . 2 Siege Activations . | . . . Robots Corrupted . | . . . Combat Hostiles . | . . . Parts Fried . | . . . Impact Corruptions . | . . . Robots Melted . | . . . Combat Hostiles . | . . . Parts Melted . | . . . Heat Transferred 1030 | . 350 680 Parts Sabotaged . | . . . Parts Stolen . | . . . Parts Stripped . | . . . Power Chain Reactions . | . . . Alert | -11 -10 -10 ------- Run | Yrd Mat Min Peak Influence 221 | . 219 221 Initial 85 | . . 85 Average 99 | . 114 99 Maximum Alert Level 1 | . 1 1 Low Security (%) 86 | 100 76 96 Level 1 13 | . 23 3 Level 2 . | . . . Level 3 . | . . . Level 4 . | . . . Level 5 . | . . . High Security . | . . . Max Security . | . . . Squads Dispatched 2 | . 2 . Investigation 1 | . 1 . Extermination . | . . . Reinforcement 1 | . 1 . Assault . | . . . Garrison . | . . . Intercept . | . . . Searches Triggered . | . . . Construction Impeded . | . . . Haulers Reinforced . | . . . Active Scanning Responses . | . . . Cargo Convoy Interrupts . | . . . Stealth | -11 -10 -10 --------- Run | Yrd Mat Min Distress Signals . | . . . Communications Jammed . | . . . Distress Signals . | . . . Times Spotted 16 | . 8 8 Peak Tracking Total 3 | . 3 3 Tactical Retreats 2 | . 1 1 Traps | -11 -10 -10 ------- Run | Yrd Mat Min Traps Triggered 1 | . 1 . Indirectly . | . . . Trap Hack Attempts . | . . . Triggered . | . . . Disarmed . | . . . Reprogrammed . | . . . Reused . | . . . Traps Extracted . | . . . Installed . | . . . Triggered . | . . . Machines | -11 -10 -10 ---------- Run | Yrd Mat Min Machines Disabled 2 | . . 2 Max in Single Turn 2 | . . 2 Machines Repaired . | . . . Machines Dismantled . | . . . Machines Sabotaged . | . . . Overloaded Fab Kills . | . . . Hacking | -11 -10 -10 --------- Run | Yrd Mat Min Machines Accessed 3 | . 3 . Terminals 2 | . 2 . Fabricators . | . . . Repair Stations . | . . . Recycling Units 1 | . 1 . Scanalyzers . | . . . Garrison Access . | . . . Total Hacks 6 | . 6 . Successful 3 | . 3 . Failed 3 | . 3 . Catastrophic 1 | . 1 . Database Lockouts . | . . . Manual 2 | . 2 . Terminals 4 | . 4 . Fabricators . | . . . Repair Stations . | . . . Recycling Units 2 | . 2 . Scanalyzers . | . . . Garrison Access . | . . . Terminal Hacks 1 | . 1 . Terminal Index 1 | . 1 . Fabricator Hacks . | . . . Repair Station Hacks . | . . . Recycling Unit Hacks 2 | . 2 . Process 1 | . 1 . Report Inventory 1 | . 1 . Scanalyzer . | . . . Garrison Access Hacks . | . . . Unauthorized Hacks . | . . . Terminals . | . . . Fabricators . | . . . Repair Stations . | . . . Recycling Units . | . . . Scanalyzers . | . . . Garrison Access . | . . . Data Cores Recovered . | . . . Used . | . . . Hacking Detections 3 | . 3 . Full Trace Events 1 | . 1 . Feedback Events 1 | . 1 . Corruption 1 | . 1 . Feedback Blocked . | . . . Robot Schematics Acquired . | . . . Robots Built . | . . . Authchips . | . . . Time . | . . . Total Robot Build Rating . | . . . Part Schematics Acquired . | . . . Parts Built . | . . . Authchips . | . . . Time . | . . . Total Part Build Rating . | . . . Parts Repaired . | . . . Time . | . . . Parts Recycled . | . . . Recycled Matter 6 | . 6 . Retrieved Matter . | . . . Retrieved Components . | . . . Parts Scanalyzed . | . . . Part Schematics Acquired . | . . . Parts Damaged . | . . . Bothacking | -11 -10 -10 ------------ Run | Yrd Mat Min Used RIF Installer . | . . . Robots Hacked . | . . . Non-combat . | . . . Combat . | . . . Robot Hacks Applied . | . . . Relay Couplers Released . | . . . Fabnet Peak Effective % . | . . . Robots Rewired . | . . . Allies Hacked . | . . . Hacks Repelled . | . . . Allies | -11 -10 -10 -------- Run | Yrd Mat Min Total Allies . | . . . Largest Group . | . . . Highest-Rated Group . | . . . Highest-Rated Ally . | . . . Total Orders . | . . . Ally Attacks . | . . . Total Damage . | . . . Kills . | . . . Allies Corrupted . | . . . Allies Melted . | . . . Intel | -11 -10 -10 ------- Run | Yrd Mat Min Robot Analysis Total . | . . . Derelict Logs Recovered 1 | . . 1 Drone Launches . | . . . Drone Recoveries . | . . . Exploration | -11 -10 -10 ------------- Run | Yrd Mat Min Turns Passed 450 | 37 226 187 Spaces Moved 294 | 33 153 108 Core 5 | 2 . 3 Treads . | . . . Legs 71 | . . 71 Wheels 192 | 31 153 8 Hover . | . . . Flight 26 | . . 26 Fastest Speed 37 | 50 90 37 Average Speed 94 | 86 93 98 Slowest Speed 120 | 90 100 120 Overloaded Moves . | . . . Propulsion Burnouts . | . . . Robots Hopped . | . . . Cave-ins Triggered . | . . . Exploration Rate (%) 26 | 3 41 35 Regions Visited 2 Branch Regions 1 Pre-discovered Areas . | . . . Known Exits Taken . | . . . Unknown Exits Taken 2 | 1 1 . Scrap Searched . | . . . Spaces Dug . | . . . Terrain Destroyed 51 | . . 51 Melee . | . . . Projectile 1 | . . 1 AOE 50 | . . 50 Terrain Rammed . | . . . Walls Destroyed . | . . . Machines Disabled . | . . . Actions | -11 -10 -10 --------- Run | Yrd Mat Min Total 382 | 39 194 149 Wait 19 | . 13 6 Move 292 | 32 152 108 Hop . | . . . Pick Up 9 | 2 4 3 Fast Attach 11 | 5 2 4 Attach 4 | . . 4 Detach . | . . . Swap . | . . . Drop 2 | . 2 . Fire 45 | . 21 24 Melee . | . . . Ram . | . . . Kick . | . . . Crush . | . . . Escape Stasis . | . . . Rewire . | . . . Trap . | . . . Miscellaneous . | . . . Route ------- -11/Scrapyard -10/Materials (discovered 2 exits: [*Min x2]) -10/Mines (discovered 1 exit: [*Mat]) History --------- Turn | Location | Event 5 | -11/Scrapyard | Discovered new exit (range 15) 38 | -11/Scrapyard | Entered Materials 68 | -10/Materials | Discovered new exit (range 15) 163 | -10/Materials | Discovered new exit (range 7) 264 | -10/Materials | Entered Mines 294 | -10/Mines | Core integrity fell below 50% 342 | -10/Mines | Build established: Mutant 342 | -10/Mines | Lost 6 parts (1p1n1u3w) 376 | -10/Mines | A weapon hastily lodged in a ceiling crevice suddenly fell to the ground 406 | -10/Mines | Core integrity fell below 20% 418 | -10/Mines | Discovered new exit (range 12) 443 | -10/Mines | Lost 3 parts (1p2n) 451 | -10/Mines | Destroyed by Y-45 Defender with Heavy Assault Rifle Last Messages --------------- under some rubble with a note attached: "One is never enough." 00378_ Acquired Plasma Flamer. 00400_ Acquired derelict log, extracted data. Data stored: Storage entrances (x1). 00408_ Aluminum Leg destroyed. 00412_ Ion Engine destroyed. 00416_ S-10 Pest destroyed. 00418_ EXIT=FOUND 00419_ S-10 Pest destroyed. 00420_ Overheating: System interference. 00420_ Grenade Launcher temporarily disabled. 00423_ S-10 Pest suffers critical hit (Burn). 00423_ S-10 Pest destroyed. 00425_ Acquired 11 matter. 00427_ Acquired Flight Unit. 00431_ Acquired 4 matter. 00432_ Acquired Flight Unit. 00434_ Acquired Lgt. Assault Rifle. 00447_ Machine disabled. Map ----- +----------------------------------------------------+ | | | | | | | | | | | | | | | | | | | | | | | ??????????????????????????????????? | | ??????????????????????????????????? | | ??????????????????????????????????? | | ??????????????????????????????????? | | ??????????????????##??#####???????? | | ??????????????###?# ### ##??????? | | ?????????????## # #??????? | | ?????????????# [[ #??????? | | ?????????????# #???????? | | ?????????????# Y #???????? | | ?????????????## Y ##??????? | | ?????????????# ! < #??????? | | ??????????????##[| #??????? | | ???????????????????# #??????? | | ???????????????????# @##??????? | | ?????????#? ???????## ## #???????? | | ?????????# ??????##### #???????? | | ?????????? ??????????# #???????? | | ??????????? ?????????# #???????? | | ???????????# ????????## ##??????? | | ????? #??## ???????# #??????? | | ????? ## ???????# #??????? | | ????? ???????# r #??????? | | ????# ??##### #??????? | | ?????? ??# #??????? | | ?????????# ### #### ##??????? | | ??????????# #??###???????? | | ???????????# #????????????? | | ???????????####### ###????####????? | | ?????????????????# #?????## ##???? | | ?????????????????# ####### ##??? | | ?????????????????# #??? | | ?????????????????######## #??? | | ???????????????????????## #??? | | ?????????????#???????### #??? | | ?????????????# #????## #??? | | ??????????????? ???# #??? | | ????????????????# ### #??? | | ????????????????# #??? | +----------------------------------------------------+ Best States ------------- Heat Dissipation 35 Energy Generation 10 Energy Capacity 250 Matter Stores 297 Matter Capacity 300 Sight Range 16 Terrain Scan Density 10 Evasion (%) 62 Item Schematics ----------------- None Robot Schematics ------------------ None Fabricated ------------ Nothing Alien Tech Used ----------------- None Achievements -------------- None Challenges ------------ None Game ------ Seed CoolingDeepCleaver Manual? 0 Play Time 00:09:32 Cumulative 13.1 hours Start 2024.04.14 @ 02:19:53 End 2024.04.14 @ 02:26:43 Sessions 1 Manual Loads 0 Difficulty Rogue Special Mode None Game No. 9 Rogue 4 Adventurer 5 Explorer 0 Win Type - Total 0 Types 0/0/0/0/0/0/0/0/0 Lore% 5 Gallery% 19 Achievement% 17 Wizard Run 0 Options --------- Layout 2 ASCII 0 Keyboard 1 Movement Numpad Keybinds 0 Fullscreen 1 Font 24/Smallcaps Map View 50x44 Zoom Use 0% Tactical HUD 1 Map Filters NONE Filters NONE Steam 1 RUN: baee62b9-c73b-47c5-a6b9-6c156326f4ee